[Event "Baku Open 2024"]
[Site "Baku"]
[Date "2024.07.06"]
[Round "8.21"]
[White "Amangeldy, Ernur"]
[Black "Zhukova, Natalia"]
[Result "1/2-1/2"]
[ECO "C11"]
[WhiteElo "2223"]
[BlackElo "2306"]
[Annotator "TA"]
[PlyCount "127"]
[EventDate "2024.06.29"]
[EventType "swiss"]
[EventCountry "AZE"]
[SourceTitle "playchess.com"]
[Source "ChessBase"]
[SourceQuality "1"]
[TimeControl "5400+30"]

{[%evp 34,127,0,0,15,15,11,12,12,13,12,8,9,8,20,16,20,15,27,18,15,14,20,20,15,13,13,13,13,17,24,10,25,16,97,0,0,0,0,-131,-135,-111,-114,-116,-120,-112,-133,-115,-60,-140,-105,-118,-140,-118,-99,-115,0,0,0,-28,0,-20,0,0,0,-291,0,0,0,0,0,0,0,0,0,0,0,0,0,-93,0,0,0,0,0,0,0,0,0,0,0,0,0,0,0,0]} 1. e4 {[%emt 0:01:42]} e6 {[%emt 0:00:34]} 2. d4 {[%emt 0:03:13]} d5 {[%emt 0:00:07]} 3. Nc3 {[%emt 0:01:16]} Nf6 {[%emt 0:00:32]} 4. e5 {[%emt 0:00:08]} Nfd7 {[%emt 0:00:05]} 5. Nce2 {[%emt 0:00:09]} c5 {[%emt 0:00:15]} 6. c3 {[%emt 0:00:07]} Nc6 {[%emt 0:00:07]} 7. Nf3 {[%emt 0:00:06]} Qb6 {[%emt 0:05:39]} 8. a3 {[%emt 0:03:58]} Be7 {[%emt 0:01:48]} 9. h4 {[%emt 0:02:49]} c4 {[%emt 0:22:05]} 10. Nf4 {[%emt 0:04:36]} Na5 {[%emt 0:00:45]} 11. Nd2 {[%emt 0:04:20]} Qc7 {[%emt 0:08:54]} 12. Rb1 {[%emt 0:02:30]} Nb6 {[%emt 0:08:54]} 13. Nh5 {[%emt 0:04:37]} g6 {[%emt 0:05:31]} 14. Ng3 {[%emt 0:03:59]} Bd7 {[%emt 0:04:41]} 15. Nf3 {[%emt 0:01:42]} h6 {[%emt 0:04:59]} 16. Bf4 {[%emt 0:02:28]} O-O-O {[%emt 0:01:10]} 17. Qc1 {[%emt 0:00:38]} Bf8 {[%emt 0:04:32]} 18. Nh2 {[%emt 0:02:15]} Bg7 {[%emt 0:01:14]} 19. Ng4 {[%emt 0:01:17]} h5 {[%emt 0:03:06]} 20. Nh2 {[%emt 0:00:16]} Ba4 {[%emt 0:00:50]} 21. Nf3 {[%emt 0:00:48]} Bb3 {[%emt 0:03:07]} 22. Ra1 {[%emt 0:00:59]} Ba4 {[%emt 0:00:24]} 23. Qe3 {[%emt 0:00:15]} Nc6 {[%emt 0:03:24]} 24. Be2 {[%emt 0:05:57]} Kb8 {[%emt 0:01:50]} 25. O-O {[%emt 0:01:58]} Ka8 {[%emt 0:03:11]} 26. Rae1 {[%emt 0:01:36]} Rc8 {[%emt 0:02:29]} 27. Ng5 {[%emt 0:01:23]} Rcf8 {[%emt 0:03:04]} 28. Bd1 {[%emt 0:01:57]} Na5 {[%emt 0:00:28]} 29. Bxa4 {[%emt 0:01:47]} Nxa4 {[%emt 0:00:02]} 30. Re2 {[%emt 0:01:44]} Qd7 {[%emt 0:00:18]} 31. Qd2 {[%emt 0:04:31]} Rc8 {[%emt 0:00:10]} 32. Qc2 {[%emt 0:01:58]} Rhf8 {[%emt 0:01:07]} 33. Bc1 {[%emt 0:03:18]} Qb5 {[%emt 0:00:11]} (33... Nb6 $11) 34. f4 {[%emt 0:00:54]} ({White should try} 34. Nxf7 $16 Rxf7 35. Qxg6) 34... Nb3 $1 $11 {[%emt 0:03:02]} 35. f5 {[%emt 0:01:40]} exf5 {[%emt 0:00:14]} 36. e6 {[%emt 0:04:06]} (36. Bf4 $11 {remains equal.}) 36... Bxd4+ $1 $17 {[%emt 0:00:36]} 37. cxd4 {[%emt 0:05:35]} Nxd4 {[%emt 0:00:02]} 38. Qd1 {[%emt 0:00:45]} Nxe2+ {[%emt 0:00:04]} 39. Nxe2 {[%emt 0:00:16]} fxe6 {[%emt 0:00:45]} 40. Nxe6 {[%emt 0:03:32] [#]} Rfe8 {[%emt 0:00:18]} (40... Nxb2 41. N2d4 Qb6 42. Bxb2 Qxb2 43. Nxf8 Rxf8 44. Qa1 Qxa1 45. Rxa1 $11) ({Better is} 40... Qb6+ $1 $17 41. N2d4 Rfe8) 41. N2d4 {[%emt 0:00:43]} (41. N2f4 $15 Qc6 42. Ng5) 41... Qb6 $17 {[%emt 0:00:43]} 42. Re1 {[%emt 0:00:05] [#]} Nc5 $1 {[%emt 0:00:54]} ({Don't play} 42... Nxb2 $6 43. Bxb2 Rxe6 (43... Qxb2 $2 44. Nc7+ Kb8 45. Nxe8 $18) 44. Rxe6 $11) 43. Nxc5 {[%emt 0:00:21]} Qxc5 {[%emt 0:00:30]} 44. Be3 {[%emt 0:00:34]} Qa5 {[%emt 0:07:05]} (44... c3 $17 45. Nb3 Qc4 46. bxc3 Qxh4 (46... Qxc3 47. Bf2 $17)) 45. Bf2 $1 $11 {[%emt 0:01:54]} Re4 {[%emt 0:01:30]} 46. Rf1 {[%emt 0:01:54]} a6 {[%emt 0:01:17]} 47. Qc2 {[%emt 0:04:35]} Rce8 {[%emt 0:00:06]} 48. Nf3 {[%emt 0:01:09]} Re2 {[%emt 0:00:09]} 49. Qd1 $2 {[%emt 0:00:08][%mdl 8192]} (49. Qc1 $11) 49... R8e4 $2 {[%emt 0:01:10]} (49... Rxb2 $19 {[%cal Oe8e4] White must now prevent ...Re4!} 50. Qd4 Rxf2 (50... Qxa3 51. Qa7#) 51. Qxf2 c3 (51... Qxa3 $2 52. Rd1 $19)) 50. Qc1 $11 {[%emt 0:01:27]} Rg4 {[%emt 0:00:56]} 51. Rd1 {[%emt 0:01:34]} Qc7 {[%emt 0:00:29]} 52. Rd2 {[%emt 0:02:48]} Qf4 {[%emt 0:00:16]} 53. Qc3 {[%emt 0:01:07]} Rxd2 {[%emt 0:00:27]} 54. Nxd2 {[%emt 0:01:13]} d4 {[%emt 0:00:47]} 55. Qb4 {[%emt 0:00:04]} b5 {[%emt 0:00:35]} 56. Qa5 {[%emt 0:01:10]} (56. Qf8+ $11 {keeps the balance.} Kb7 57. Qf7+ Qc7 58. Qe6) 56... Qd6 {[%emt 0:00:04]} ({Black should play} 56... Kb7 $17 57. Qd8 Qc7 (57... Qxd2 58. Qe7+ Kc8 59. Qe6+ Kc7 60. Qe7+ Kc6 61. Qe6+ Kc5 62. Qe5+ Kb6 63. Qe6+ Kc5 64. Qe5+ Kc6 65. Qe6+ Kc7 66. Qe7+ Kc8 67. Qe8+ Kc7 68. Qe7+ $11)) 57. a4 $11 {[%emt 0:00:47]} Qc6 {[%emt 0:00:28]} 58. Qd8+ {[%emt 0:02:04]} Kb7 {[%emt 0:00:01]} 59. Qe7+ {[%emt 0:00:02]} Kc8 {[%emt 0:00:52]} 60. Qf8+ {[%emt 0:00:34]} Kb7 {[%emt 0:00:01]} 61. Qe7+ {[%emt 0:00:13]} Kc8 {[%emt 0:00:57]} 62. Qf8+ {[%emt 0:00:05]} Kb7 {[%emt 0:00:03]} 63. Qe7+ {[%emt 0:00:04]} Kc8 {[%emt 0:00:52]} 64. Qf8+ {[%emt 0:00:03]} 1/2-1/2

[Event "Baku Open 2024"]
[Site "Baku"]
[Date "2024.07.06"]
[Round "8.22"]
[White "Akhilbay, Imangali"]
[Black "Serikbay, Assel"]
[Result "1-0"]
[ECO "B08"]
[WhiteElo "2303"]
[BlackElo "2217"]
[Annotator "RC"]
[PlyCount "103"]
[EventDate "2024.06.29"]
[EventType "swiss"]
[EventCountry "AZE"]
[SourceTitle "playchess.com"]
[Source "ChessBase"]
[SourceQuality "1"]
[TimeControl "5400+30"]

1. e4 {[%emt 0:00:06]} c5 {[%emt 0:00:06]} 2. Nf3 {[%emt 0:00:06]} d6 {[%emt 0:00:09]} 3. d4 {[%emt 0:00:12]} cxd4 {[%emt 0:00:07]} 4. Qxd4 {[%emt 0:00:04]} Nc6 {[%emt 0:01:15]} 5. Qd3 {[%emt 0:00:05]} Nf6 {[%emt 0:03:19]} 6. Nc3 {[%emt 0:00:44]} g6 {[%emt 0:02:00]} 7. Be2 {[%emt 0:01:02]} Bg7 {[%emt 0:00:06]} 8. O-O {[%emt 0:00:16]} O-O {[%emt 0:00:11]} 9. Nd5 {[%emt 0:00:47]} Nxd5 {[%emt 0:03:40]} 10. exd5 {[%emt 0:00:07]} Ne5 {[%emt 0:12:42]} 11. Nxe5 {[%emt 0:00:07]} Bxe5 {[%emt 0:00:04]} 12. c3 {[%emt 0:00:09]} Bf5 {[%emt 0:01:07]} 13. Qd1 {[%emt 0:00:05]} Qb6 {[%emt 0:10:54]} 14. Bh6 {[%emt 0:06:28]} Rfe8 {[%emt 0:07:56]} 15. Qd2 {[%emt 0:02:51]} Bd7 {[%emt 0:03:52]} 16. Rfe1 {[%emt 0:04:47]} a5 {[%emt 0:03:41]} 17. a4 {[%emt 0:07:54]} Rac8 {[%emt 0:04:08]} 18. h4 {[%emt 0:09:06]} Bf6 {[%emt 0:06:44]} 19. h5 {[%emt 0:06:25]} e5 {[%emt 0:01:40]} 20. dxe6 {[%emt 0:06:58]} Rxe6 {[%emt 0:01:58]} 21. Bf3 {[%emt 0:02:35]} Rxe1+ {[%emt 0:13:04]} 22. Rxe1 {[%emt 0:01:21]} Re8 {[%emt 0:00:18]} 23. Rxe8+ {[%emt 0:14:48]} Bxe8 {[%emt 0:00:05]} 24. Bd5 {[%emt 0:00:05]} Qc5 {[%emt 0:04:27]} 25. hxg6 {[%emt 0:09:32]} hxg6 {[%emt 0:00:04]} 26. Qd3 {[%emt 0:00:20]} Kh7 {[%emt 0:01:04]} 27. Bf4 {[%emt 0:03:17]} Be5 {[%emt 0:05:40]} 28. Bd2 {[%emt 0:06:34]} Kg7 {[%emt 0:02:47]} 29. b4 {[%emt 0:05:09]} Qc8 {[%emt 0:02:23]} 30. b5 {[%emt 0:03:46]} Qg4 {[%emt 0:01:45]} 31. Bb3 {[%emt 0:01:39]} Bd7 {[%emt 0:01:16]} 32. Qf3 {[%emt 0:00:33]} Qxf3 {[%emt 0:00:38]} 33. gxf3 {[%emt 0:00:01]} Bf6 {[%emt 0:01:25]} 34. Bd5 {[%emt 0:02:22]} b6 {[%emt 0:00:17]} 35. Bf4 {[%emt 0:00:56]} Bxc3 {[%emt 0:01:35]} 36. Be3 {[%emt 0:00:04]} Kf6 {[%emt 0:02:23]} 37. Bxb6 {[%emt 0:00:11]} Ke5 {[%emt 0:00:21]} 38. Bxf7 {[%emt 0:01:29]} g5 {[%emt 0:00:35]} 39. Be3 {[%emt 0:01:13]} d5 {[%emt 0:03:12]} 40. Bxg5 {[%emt 0:01:51]} Bf5 {[%emt 0:00:57]} 41. Be8 {[%emt 0:02:42]} Kd6 {[%emt 0:00:01]} 42. Bd8 {[%emt 0:01:05]} Kc5 {[%emt 0:00:42]} 43. b6 {[%emt 0:00:40]} Bc8 {[%emt 0:00:03]} 44. f4 {[%emt 0:00:24]} d4 {[%emt 0:01:15]} 45. Bb5 {[%emt 0:00:41]} Bb7 {[%emt 0:00:29]} 46. f5 {[%emt 0:00:17]} Kd6 {[%emt 0:00:33]} 47. f6 {[%emt 0:00:46]} Ke6 {[%emt 0:00:26]} 48. Bc4+ {[%emt 0:00:53]} Kd7 {[%emt 0:00:01]} 49. f7 {[%emt 0:00:19]} Bb4 {[%emt 0:00:05]} 50. Bf6 {[%emt 0:00:09]} Bf8 {[%emt 0:00:26]} 51. Bxd4 {[%emt 0:00:15]} Kc8 {[%emt 0:00:26]} 52. Be5 {[%emt 0:00:34]} 1-0

[Event "Baku Open 2024"]
[Site "Baku"]
[Date "2024.07.06"]
[Round "8.23"]
[White "Md Imran"]
[Black "Khamdamova, Afruza"]
[Result "1-0"]
[ECO "D37"]
[WhiteElo "2180"]
[BlackElo "2291"]
[Annotator "RC"]
[PlyCount "195"]
[EventDate "2024.06.29"]
[EventType "swiss"]
[EventCountry "AZE"]
[SourceTitle "playchess.com"]
[Source "ChessBase"]
[SourceQuality "1"]
[TimeControl "5400+30"]

1. d4 {[%emt 0:00:06]} d5 {[%emt 0:00:34]} 2. c4 {[%emt 0:00:12]} e6 {[%emt 0:00:04]} 3. Nf3 {[%emt 0:00:05]} Nf6 {[%emt 0:00:05]} 4. Nc3 {[%emt 0:03:59]} Be7 {[%emt 0:00:33]} 5. Bf4 {[%emt 0:04:12]} O-O {[%emt 0:00:18]} 6. e3 {[%emt 0:00:05]} b6 {[%emt 0:00:57]} 7. Bd3 {[%emt 0:00:29]} dxc4 {[%emt 0:00:17]} 8. Bxc4 {[%emt 0:00:05]} Bb7 {[%emt 0:00:04]} 9. Qe2 {[%emt 0:00:08]} a6 {[%emt 0:15:40]} 10. O-O {[%emt 0:02:04]} Nbd7 {[%emt 0:00:27]} 11. Rfd1 {[%emt 0:00:36]} b5 {[%emt 0:00:23]} 12. Bd3 {[%emt 0:01:17]} c5 {[%emt 0:00:32]} 13. dxc5 {[%emt 0:00:17]} Bxc5 {[%emt 0:00:14]} 14. Ne5 {[%emt 0:10:48]} h6 {[%emt 0:26:33]} 15. Be4 {[%emt 0:21:57]} Qc8 {[%emt 0:18:42]} 16. Nxd7 {[%emt 0:02:33]} Nxd7 {[%emt 0:00:06]} 17. Qf3 {[%emt 0:06:33]} Ra7 {[%emt 0:03:28]} 18. Bxb7 {[%emt 0:00:16]} Qxb7 {[%emt 0:00:31]} 19. Ne4 {[%emt 0:00:09]} Be7 {[%emt 0:02:49]} 20. Rac1 {[%emt 0:00:10]} Qa8 {[%emt 0:00:42]} 21. Bc7 {[%emt 0:12:43]} Nf6 {[%emt 0:03:57]} 22. Bb6 {[%emt 0:00:36]} Rb7 {[%emt 0:00:18]} 23. Bd4 {[%emt 0:02:05]} Nxe4 {[%emt 0:00:14]} 24. Qxe4 {[%emt 0:00:04]} Rc8 {[%emt 0:06:37]} 25. Kf1 {[%emt 0:06:11]} Rd7 {[%emt 0:02:25]} 26. Qxa8 {[%emt 0:00:44]} Rxa8 {[%emt 0:00:04]} 27. Ke2 {[%emt 0:00:15]} Rad8 {[%emt 0:00:46]} 28. f4 {[%emt 0:00:18]} f6 {[%emt 0:00:55]} 29. Rd2 {[%emt 0:00:31]} Kf7 {[%emt 0:03:07]} 30. Rdc2 {[%emt 0:00:40]} g5 {[%emt 0:01:05]} 31. Bb6 {[%emt 0:00:55]} Rb8 {[%emt 0:00:22]} 32. Rc6 {[%emt 0:00:44]} Bd8 {[%emt 0:06:02]} 33. Bxd8 {[%emt 0:03:19]} Rbxd8 {[%emt 0:00:06]} 34. Rxa6 {[%emt 0:00:35]} Rd2+ {[%emt 0:00:28]} 35. Kf3 {[%emt 0:00:05]} gxf4 {[%emt 0:03:17]} 36. Rc7+ {[%emt 0:00:11]} Kg6 {[%emt 0:00:08]} 37. Rxe6 {[%emt 0:00:18]} fxe3 {[%emt 0:00:19]} 38. Rcc6 {[%emt 0:03:36]} Rf8 {[%emt 0:00:06]} 39. b3 {[%emt 0:00:44]} Rxa2 {[%emt 0:01:22]} 40. Rxe3 {[%emt 0:00:04]} Rb2 {[%emt 0:01:00]} 41. Kg3 {[%emt 0:00:27]} Kg7 {[%emt 0:01:45]} 42. Rb6 {[%emt 0:00:14]} Rd8 {[%emt 0:00:44]} 43. Rb7+ {[%emt 0:01:20]} Kg6 {[%emt 0:01:14]} 44. Kh3 {[%emt 0:00:01]} Rd5 {[%emt 0:01:15]} 45. Rg3+ {[%emt 0:00:02]} Kf5 {[%emt 0:01:21]} 46. Rh7 {[%emt 0:00:49]} Ke6 {[%emt 0:00:22]} 47. Rxh6 {[%emt 0:00:09]} Rf2 {[%emt 0:00:28]} 48. Rh8 {[%emt 0:05:06]} Rc5 {[%emt 0:00:47]} 49. Re3+ {[%emt 0:00:35]} Kf7 {[%emt 0:00:14]} 50. Rh7+ {[%emt 0:00:32]} Kg6 {[%emt 0:00:04]} 51. Rh4 {[%emt 0:00:54]} Kf7 {[%emt 0:00:25]} 52. Rg3 {[%emt 0:01:00]} Ke6 {[%emt 0:00:18]} 53. Rh8 {[%emt 0:00:12]} Kf7 {[%emt 0:00:26]} 54. Rh7+ {[%emt 0:00:09]} Ke6 {[%emt 0:00:13]} 55. Re3+ {[%emt 0:00:05]} Kd6 {[%emt 0:00:29]} 56. Rh8 {[%emt 0:00:52]} Rg5 {[%emt 0:00:34]} 57. g3 {[%emt 0:01:12]} Rc5 {[%emt 0:01:01]} 58. Rh6 {[%emt 0:03:55]} Rd5 {[%emt 0:01:28]} 59. g4 {[%emt 0:04:34]} Rdd2 {[%emt 0:00:32]} 60. Kg3 {[%emt 0:00:09]} Rg2+ {[%emt 0:00:25]} 61. Kf4 {[%emt 0:00:07]} Rdf2+ {[%emt 0:00:40]} 62. Rf3 {[%emt 0:00:12]} Ke6 {[%emt 0:00:10]} 63. h4 {[%emt 0:01:31]} Ke7 {[%emt 0:00:43]} 64. Rh7+ {[%emt 0:00:16]} Kd6 {[%emt 0:00:26]} 65. Rf7 {[%emt 0:00:28]} Ke6 {[%emt 0:00:22]} 66. Rb7 {[%emt 0:00:05]} Rd2 {[%emt 0:00:27]} 67. Re3+ {[%emt 0:00:16]} Kd6 {[%emt 0:00:12]} 68. Rb6+ {[%emt 0:02:20]} Kd7 {[%emt 0:00:30]} 69. Rxf6 {[%emt 0:01:20]} Rd4+ {[%emt 0:00:24]} 70. Re4 {[%emt 0:00:31]} Rxe4+ {[%emt 0:01:10]} 71. Kxe4 {[%emt 0:00:01]} Rxg4+ {[%emt 0:00:05]} 72. Rf4 {[%emt 0:00:02]} Rg3 {[%emt 0:00:11]} 73. b4 {[%emt 0:00:02]} Ke6 {[%emt 0:01:16]} 74. Kd4 {[%emt 0:00:01]} Rh3 {[%emt 0:00:38]} 75. Kc5 {[%emt 0:00:15]} Ke5 {[%emt 0:00:05]} 76. Rf8 {[%emt 0:00:27]} Ke6 {[%emt 0:00:48]} 77. Rh8 {[%emt 0:00:10]} Kd7 {[%emt 0:00:17]} 78. Rh7+ {[%emt 0:00:06]} Kc8 {[%emt 0:00:06]} 79. Kxb5 {[%emt 0:00:09]} Rf3 {[%emt 0:00:20]} 80. Rg7 {[%emt 0:00:13]} Rf5+ {[%emt 0:00:07]} 81. Ka4 {[%emt 0:00:09]} Rh5 {[%emt 0:00:18]} 82. Rg4 {[%emt 0:00:03]} Kc7 {[%emt 0:00:06]} 83. Rd4 {[%emt 0:00:06]} Kc6 {[%emt 0:00:27]} 84. Kb3 {[%emt 0:00:01]} Kb5 {[%emt 0:00:33]} 85. Kc3 {[%emt 0:00:04]} Kc6 {[%emt 0:00:46]} 86. Kd3 {[%emt 0:00:06]} Re5 {[%emt 0:00:03]} 87. Re4 {[%emt 0:00:22]} Rf5 {[%emt 0:00:06]} 88. Kc4 {[%emt 0:00:28]} Rf1 {[%emt 0:00:27]} 89. b5+ {[%emt 0:00:05]} Kd6 {[%emt 0:00:08]} 90. Rd4+ {[%emt 0:00:06]} Kc7 {[%emt 0:00:14]} 91. Kc5 {[%emt 0:02:38]} Rc1+ {[%emt 0:00:32]} 92. Rc4 {[%emt 0:00:10]} Rh1 {[%emt 0:00:05]} 93. Rg4 {[%emt 0:11:14]} Rc1+ {[%emt 0:00:10]} 94. Kb4 {[%emt 0:00:00]} Rb1+ {[%emt 0:00:22]} 95. Ka5 {[%emt 0:00:00]} Ra1+ {[%emt 0:00:57]} 96. Ra4 {[%emt 0:00:00]} Rc1 {[%emt 0:00:40]} 97. Ka6 {[%emt 0:00:00]} Kb8 {[%emt 0:00:49]} 98. Rf4 {[%emt 0:00:00]} 1-0

[Event "Baku Open 2024"]
[Site "Baku"]
[Date "2024.07.06"]
[Round "8.24"]
[White "Ahmadov, Fariz"]
[Black "Novozhilov, Semen"]
[Result "0-1"]
[ECO "E60"]
[WhiteElo "2178"]
[BlackElo "2288"]
[Annotator "TA"]
[PlyCount "87"]
[EventDate "2024.06.29"]
[EventType "swiss"]
[EventCountry "AZE"]
[SourceTitle "playchess.com"]
[Source "ChessBase"]
[SourceQuality "1"]
[TimeControl "5400+30"]

{[%evp 16,87,-18,-14,-12,-28,-26,-45,-29,-58,-71,-86,-82,-146,-128,-140,-78,-70,-78,-110,-89,-93,-96,-102,-126,-129,-89,-105,-83,-90,-100,-175,-182,-189,-193,-256,-270,-314,-306,-325,-341,-422,-395,-483,-434,-456,-441,-452,-417,-430,-434,-436,-435,-425,-469,-475,-479,-616,-460,-614,-524,-783,-789,-781,-777,-1167,-1006,-1073,-1153,-3577,-2828,-4914,-2907,-2537]} 1. Nf3 {[%emt 0:01:02]} c5 {[%emt 0:00:11]} 2. g3 {[%emt 0:01:08]} Nc6 {[%emt 0:00:14]} 3. Bg2 {[%emt 0:00:17]} g6 {[%emt 0:00:11]} 4. d4 {[%emt 0:00:40]} cxd4 {[%emt 0:06:01]} 5. Nxd4 {[%emt 0:00:09]} Bg7 {[%emt 0:00:06]} 6. Nb3 {[%emt 0:00:19]} Nf6 {[%emt 0:04:49]} 7. c4 {[%emt 0:00:24]} O-O {[%emt 0:00:46]} 8. O-O {[%emt 0:00:06]} d6 {[%emt 0:04:58]} 9. Nc3 {[%emt 0:04:48]} Be6 {[%emt 0:03:57]} 10. c5 {[%emt 0:01:27]} d5 {[%emt 0:06:41]} 11. Be3 {[%emt 0:03:28]} Qd7 {[%emt 0:01:27] Black is slightly better.} 12. Re1 {[%emt 0:02:35]} Rfd8 {[%emt 0:02:25]} 13. Nb5 {[%emt 0:09:42]} Bh3 {[%emt 0:02:23]} 14. Bh1 {[%emt 0:00:51]} (14. f3 $142) 14... a6 {[%emt 0:01:46]} 15. N5d4 {[%emt 0:01:03]} e5 {[%emt 0:01:36]} ({Better is} 15... Ng4 {Hoping for ...Nxe3.} 16. Bc1 Nge5) 16. Nxc6 $17 {[%emt 0:00:55]} bxc6 {[%emt 0:00:25]} 17. Bg5 {[%emt 0:00:37]} h6 {[%emt 0:06:09]} 18. Bxf6 {[%emt 0:00:17]} Bxf6 {[%emt 0:00:02]} 19. e4 {[%emt 0:00:16]} a5 {[%emt 0:08:05] Black is more active.} 20. Qf3 {[%emt 0:05:51]} Kg7 {[%emt 0:04:03]} 21. exd5 {[%emt 0:00:21]} cxd5 {[%emt 0:00:20] And now ...a4 would win.} 22. c6 {[%emt 0:00:20]} Qc8 {[%emt 0:00:41][%cal Oa5a4] White must now prevent ...a4!} (22... Qxc6 23. g4) 23. c7 {[%emt 0:02:08] [#]} Rd6 $1 $19 {[%emt 0:03:12][%cal Oe5e4]} 24. Rac1 {[%emt 0:01:50]} a4 {[%emt 0:10:37]} 25. Nd2 {[%emt 0:06:47]} (25. Nc5 {was necessary.} Ra7 (25... Qxc7 $2 26. Ne6+ Bxe6 27. Rxc7 $18) 26. Qc3) 25... Ra7 {[%emt 0:02:16][%cal Oe5e4]} 26. Rc5 {[%emt 0:05:03]} Be6 {[%emt 0:03:51]} 27. Rec1 {[%emt 0:02:21]} Rd7 {[%emt 0:00:23][%cal Oe5e4]} (27... e4 28. Qd1 Rd7 (28... Bxb2 $2 29. R5c2 $19) 29. b3) 28. Qc3 {[%emt 0:05:28]} e4 {[%emt 0:00:25]} 29. Qc2 {[%emt 0:00:14]} Bd4 {[%emt 0:00:30][%cal Oe4e3] [#] Repels b4. Strongly threatening ...e3!} 30. Rc6 {[%emt 0:00:50]} Be5 {[%emt 0:00:06][%cal Rd7c7] A strong pair of Bishops.} 31. b4 {[%emt 0:11:34]} axb3 {[%emt 0:00:28]} (31... Bxc7 32. Bxe4 Qg8 (32... dxe4 $2 {too greedy.} 33. Qc3+ f6 34. Rxe6 $18) 33. Bd3 $16) (31... Raxc7 32. Qxa4 Rxc6 33. Rxc6 $19) 32. Nxb3 {[%emt 0:00:42]} Rdxc7 {[%emt 0:00:51] Black is clearly winning.} ({Much less strong is} 32... Raxc7 33. Rc5 $19) 33. Rc5 {[%emt 0:02:39]} Rxc5 {[%emt 0:02:42]} 34. Qxc5 {[%emt 0:01:17]} Qxc5 {[%emt 0:01:14]} ({Weaker is} 34... Rxa2 35. Qxc8 Bxc8 36. Rxc8 $11) 35. Nxc5 {[%emt 0:03:50]} Rxa2 {[%emt 0:00:39]} 36. Rd1 {[%emt 0:03:13]} Bb8 {[%emt 0:00:40] aiming for ...Bg4.} 37. Rc1 {[%emt 0:02:53]} Ba7 {[%emt 0:00:17] ...Bxc5 would now be deadly.} 38. h4 {[%emt 0:00:40]} Bg4 {[%emt 0:01:09]} 39. Bg2 {[%emt 0:00:34]} Kf6 {[%emt 0:00:22]} 40. Rc3 {[%emt 0:01:08]} Ke5 {[%emt 0:00:55]} 41. Rc1 {[%emt 0:00:19]} f5 {[%emt 0:01:07]} 42. Bf1 {[%emt 0:00:23]} Bxc5 {[%emt 0:00:09]} 43. Rxc5 {[%emt 0:01:21]} Ra1 {[%emt 0:00:05] ( -> ...Be2)} 44. f4+ {[%emt 0:00:28] Weighted Error Value: White=0.50/Black=0.16 (very precise) .  Mistake:       	White=3     	Black=1      Inaccurate:     	White=4     	Black=1      OK:         	White=6     	Black=12     Best:        	White=2     	Black=1} 0-1